[Event "10th Iberoamericano-ch 2024"]
[Site "Linares"]
[Date "2024.09.25"]
[Round "2.1"]
[White "Garcia Fernandez, Victor"]
[Black "Vallejo Pons, Francisco"]
[Result "0-1"]
[ECO "B06"]
[WhiteElo "2353"]
[BlackElo "2657"]
[Annotator "TA"]
[PlyCount "69"]
[EventDate "2024.09.25"]
[EventType "swiss"]
[EventCountry "ESP"]
[SourceTitle "playchess.com"]
[Source "ChessBase"]
[SourceQuality "1"]
[TimeControl "5400+30"]

{[%evp 9,69,22,20,20,23,27,35,24,26,19,47,35,111,125,153,156,158,0,0,18,22,0,0,0,5,0,0,0,0,0,0,-26,-19,-20,0,-23,0,0,0,0,0,0,0,0,-4,-17,-19,-19,-31,-27,-27,-29,-19,-29,-27,-19,-19,-27,-27,-35,-27,-126]} 1. d4 {[%emt 0:00:03]} g6 {[%emt 0:02:07]} 2. e4 {[%emt 0:00:30]} Bg7 {[%emt 0:00:15]} 3. Nc3 {[%emt 0:00:19]} d6 {[%emt 0:00:37]} 4. Bc4 {[%emt 0:00:33]} a6 {[%emt 0:06:12]} 5. Bb3 {[%emt 0:08:00]} Nc6 {[%emt 0:08:56]} 6. Nf3 {[%emt 0:03:13]} Na5 {[%emt 0:03:48]} 7. O-O {[%emt 0:01:07]} b6 {[%emt 0:10:30]} 8. Qe2 {[%emt 0:20:04] White is slightly better.} Nxb3 {[%emt 0:10:42]} 9. axb3 {[%emt 0:00:11]} Nh6 {[%emt 0:06:32][%cal Bg8h6,Bh6f7,Bf7g5][%mdl 32]} 10. Bf4 {[%emt 0:12:02]} f6 {[%emt 0:01:49]} (10... Bb7 $14) 11. d5 $16 {[%emt 0:04:05]} Nf7 {[%emt 0:07:41]} 12. Nd4 {[%emt 0:02:53]} O-O {[%emt 0:00:12] [#]} 13. Ne6 {[%emt 0:08:45]} (13. Be3 $1 $16) 13... Bxe6 $11 {[%emt 0:00:19]} 14. dxe6 {[%emt 0:00:01]} Ng5 {[%emt 0:01:40] Black is weak on the light squares} 15. Rxa6 {[%emt 0:13:35]} Rxa6 {[%emt 0:05:00]} 16. Qxa6 {[%emt 0:00:02] Black must now prevent Qc4.} Nxe6 {[%emt 0:00:22]} 17. Qc4 {[%emt 0:07:03]} Qd7 {[%emt 0:01:09][%cal Ob6b5]} 18. Be3 {[%emt 0:00:40]} f5 {[%emt 0:00:54]} 19. exf5 {[%emt 0:00:56]} Rxf5 {[%emt 0:01:27]} 20. Rd1 {[%emt 0:05:38]} b5 {[%emt 0:01:05]} 21. Qg4 {[%emt 0:03:58]} c6 {[%emt 0:05:43]} 22. Ne2 {[%emt 0:03:03]} Qe8 {[%emt 0:05:19][%cal Oe6c7]} 23. c3 {[%emt 0:04:05]} h5 {[%emt 0:02:28]} 24. Qe4 {[%emt 0:00:31]} Re5 {[%emt 0:00:04]} 25. Qf3 {[%emt 0:00:12]} Ng5 {[%emt 0:03:47]} 26. Bxg5 {[%emt 0:00:46]} Rxg5 {[%emt 0:00:02]} 27. Nd4 {[%emt 0:00:35]} Rd5 {[%emt 0:08:30]} 28. Ne6 {[%emt 0:00:24]} Rf5 {[%emt 0:01:39]} 29. Nxg7 {[%emt 0:00:26]} Kxg7 $15 {[%emt 0:00:06][%mdl 4096] Endgame. KQR-KQR} 30. Qe3 {[%emt 0:00:20]} Qf7 {[%emt 0:00:33][%cal Of5e5]} 31. b4 {[%emt 0:00:41]} Re5 {[%emt 0:00:27]} 32. Qd4 {[%emt 0:00:51]} Qf6 {[%emt 0:01:49]} 33. Qd2 {[%emt 0:00:37] Prevents Re2.} Qe6 {[%emt 0:00:17]} 34. Qd4 {[%emt 0:00:42] [#] f4 is the strong threat.} Kh7 {[%emt 0:00:46] ( -> ...Re1+)} 35. Rf1 {Weighted Error Value: White=0.15 (very precise) /Black=0.08 (flawless) .  Mistake:       	White=2     	Black=1      Inaccurate:     	White=1     	Black=1      OK:         	White=9     	Black=13     Best:        	---       	Black=2} (35. Qd3 $11) 0-1

[Event "10th Iberoamericano-ch 2024"]
[Site "Linares"]
[Date "2024.09.25"]
[Round "2.2"]
[White "Pichot, Alan"]
[Black "Sos Andreu, Eric"]
[Result "1/2-1/2"]
[ECO "B12"]
[WhiteElo "2628"]
[BlackElo "2359"]
[Annotator "RC"]
[PlyCount "205"]
[EventDate "2024.09.25"]
[EventType "swiss"]
[EventCountry "ESP"]
[SourceTitle "playchess.com"]
[Source "ChessBase"]
[SourceQuality "1"]
[TimeControl "5400+30"]

1. e4 {[%emt 0:05:14]} c6 {[%emt 0:00:12]} 2. d4 {[%emt 0:00:09]} d5 {[%emt 0:00:07]} 3. e5 {[%emt 0:00:05]} Bf5 {[%emt 0:00:20]} 4. Be3 {[%emt 0:00:33]} e6 {[%emt 0:05:01]} 5. Nd2 {[%emt 0:00:30]} Ne7 {[%emt 0:02:34]} 6. Ngf3 {[%emt 0:00:32]} Bg6 {[%emt 0:04:40]} 7. Nh4 {[%emt 0:03:19]} c5 {[%emt 0:03:15]} 8. dxc5 {[%emt 0:07:12]} Nec6 {[%emt 0:02:09]} 9. Nxg6 {[%emt 0:01:46]} hxg6 {[%emt 0:00:06]} 10. c3 {[%emt 0:01:26]} Nd7 {[%emt 0:03:27]} 11. b4 {[%emt 0:03:21]} Ndxe5 {[%emt 0:02:30]} 12. Be2 {[%emt 0:03:13]} a6 {[%emt 0:05:35]} 13. f4 {[%emt 0:04:01]} Nd7 {[%emt 0:00:45]} 14. O-O {[%emt 0:00:25]} Nf6 {[%emt 0:05:18]} 15. Bf3 {[%emt 0:03:11]} Qc7 {[%emt 0:01:54]} 16. g3 {[%emt 0:01:08]} Be7 {[%emt 0:04:21]} 17. Nb3 {[%emt 0:02:59]} a5 {[%emt 0:05:25]} 18. a3 {[%emt 0:03:19]} O-O {[%emt 0:00:20]} 19. Qe2 {[%emt 0:05:09]} Rfd8 {[%emt 0:02:51]} 20. Rfc1 {[%emt 0:01:53]} Bf8 {[%emt 0:08:39]} 21. Bf2 {[%emt 0:04:39]} Re8 {[%emt 0:02:32]} 22. Bg2 {[%emt 0:03:45]} e5 {[%emt 0:01:22]} 23. fxe5 {[%emt 0:00:21]} Rxe5 {[%emt 0:00:22]} 24. Qd1 {[%emt 0:07:32]} Rae8 {[%emt 0:04:13]} 25. Nd2 {[%emt 0:12:59]} Re2 {[%emt 0:04:54]} 26. Bf1 {[%emt 0:01:44]} R2e6 {[%emt 0:00:38]} 27. Nf3 {[%emt 0:01:01]} Ne4 {[%emt 0:02:10]} 28. Ra2 {[%emt 0:03:05]} Rf6 {[%emt 0:05:31]} 29. Bg2 {[%emt 0:00:52]} Rf5 {[%emt 0:00:35]} 30. Bd4 {[%emt 0:04:11]} Be7 {[%emt 0:01:09]} 31. Re2 {[%emt 0:00:58]} Bf6 {[%emt 0:00:57]} 32. Qd3 {[%emt 0:02:45]} Nxd4 {[%emt 0:02:42]} 33. cxd4 {[%emt 0:00:42]} axb4 {[%emt 0:04:05]} 34. axb4 {[%emt 0:00:14]} Ra8 {[%emt 0:00:05]} 35. Bh3 {[%emt 0:03:06]} Rh5 {[%emt 0:03:41]} 36. Bg4 {[%emt 0:00:06]} Rh8 {[%emt 0:00:20]} 37. Qb3 {[%emt 0:01:44]} Nxg3 {[%emt 0:05:22]} 38. hxg3 {[%emt 0:00:28]} Qxg3+ {[%emt 0:00:06]} 39. Rg2 {[%emt 0:00:05]} Qf4 {[%emt 0:00:05]} 40. Re1 {[%emt 0:00:55]} Ra1 {[%emt 0:02:04]} 41. Rxa1 {[%emt 0:05:48]} Bxd4+ {[%emt 0:00:07]} 42. Nxd4 {[%emt 0:00:24]} Qxd4+ {[%emt 0:00:05]} 43. Kf1 {[%emt 0:00:07]} Rh1+ {[%emt 0:03:25]} 44. Ke2 {[%emt 0:00:03]} Qe4+ {[%emt 0:01:34]} 45. Kf2 {[%emt 0:00:06]} Rxa1 {[%emt 0:00:11]} 46. Be2 {[%emt 0:00:34]} Qf4+ {[%emt 0:01:37]} 47. Qf3 {[%emt 0:02:45]} Qxb4 {[%emt 0:01:41]} 48. Qxd5 {[%emt 0:00:05]} Qf4+ {[%emt 0:01:13]} 49. Bf3 {[%emt 0:02:03]} Qh4+ {[%emt 0:00:05]} 50. Rg3 {[%emt 0:00:16]} Rc1 {[%emt 0:00:48]} 51. Qe4 {[%emt 0:02:05]} Qxe4 {[%emt 0:01:29]} 52. Bxe4 {[%emt 0:00:18]} Rxc5 {[%emt 0:00:05]} 53. Rd3 {[%emt 0:00:34]} Rc7 {[%emt 0:00:54]} 54. Rd8+ {[%emt 0:00:11]} Kh7 {[%emt 0:00:04]} 55. Ke3 {[%emt 0:00:12]} Kh6 {[%emt 0:01:06]} 56. Kf4 {[%emt 0:00:23]} Kh7 {[%emt 0:00:52]} 57. Bd5 {[%emt 0:01:00]} Rc1 {[%emt 0:00:43]} 58. Rd7 {[%emt 0:00:50]} Rf1+ {[%emt 0:00:07]} 59. Ke5 {[%emt 0:00:15]} Kg8 {[%emt 0:00:52]} 60. Rxb7 {[%emt 0:00:13]} g5 {[%emt 0:00:28]} 61. Rb8+ {[%emt 0:01:38]} Kh7 {[%emt 0:00:04]} 62. Rf8 {[%emt 0:00:25]} g6 {[%emt 0:00:31]} 63. Ra8 {[%emt 0:00:23]} Kg7 {[%emt 0:00:12]} 64. Be4 {[%emt 0:00:27]} g4 {[%emt 0:00:27]} 65. Kd4 {[%emt 0:00:27]} Rf2 {[%emt 0:00:54]} 66. Ke3 {[%emt 0:00:19]} Rf1 {[%emt 0:00:13]} 67. Bg2 {[%emt 0:00:12]} Rf6 {[%emt 0:00:44]} 68. Ra4 {[%emt 0:00:12]} Re6+ {[%emt 0:00:04]} 69. Kf4 {[%emt 0:00:05]} Re7 {[%emt 0:00:14]} 70. Kxg4 {[%emt 0:00:07]} Rd7 {[%emt 0:00:05]} 71. Kf4 {[%emt 0:00:10]} Re7 {[%emt 0:00:10]} 72. Bd5 {[%emt 0:01:41]} Kh7 {[%emt 0:00:21]} 73. Be4 {[%emt 0:00:54]} Kg7 {[%emt 0:00:05]} 74. Kf3 {[%emt 0:00:41]} Kh7 {[%emt 0:00:17]} 75. Bd3 {[%emt 0:00:13]} Kg7 {[%emt 0:00:07]} 76. Be2 {[%emt 0:00:06]} Kh7 {[%emt 0:00:12]} 77. Kf2 {[%emt 0:00:05]} Kg7 {[%emt 0:00:10]} 78. Ke1 {[%emt 0:00:09]} Rd7 {[%emt 0:00:16]} 79. Ra3 {[%emt 0:00:14]} Kh7 {[%emt 0:00:29]} 80. Bd3 {[%emt 0:00:06]} Kg7 {[%emt 0:00:45]} 81. Kd2 {[%emt 0:00:14]} Re7 {[%emt 0:00:57]} 82. Kc3 {[%emt 0:00:20]} Rd7 {[%emt 0:01:35]} 83. Bc4 {[%emt 0:00:15]} Kf6 {[%emt 0:00:13]} 84. Ra5 {[%emt 0:00:08]} Kg7 {[%emt 0:00:20]} 85. Bd5 {[%emt 0:00:07]} Re7 {[%emt 0:00:28]} 86. Kd4 {[%emt 0:00:05]} Kf8 {[%emt 0:00:34]} 87. Kc5 {[%emt 0:00:26]} Kg7 {[%emt 0:01:15]} 88. Kd6 {[%emt 0:00:13]} Re2 {[%emt 0:01:32]} 89. Ra4 {[%emt 0:03:27]} Rf2 {[%emt 0:00:32]} 90. Re4 {[%emt 0:00:09]} Kf8 {[%emt 0:00:13]} 91. Re3 {[%emt 0:00:56]} Rf5 {[%emt 0:00:15]} 92. Ra3 {[%emt 0:00:47]} Rf2 {[%emt 0:00:13]} 93. Bf3 {[%emt 0:00:17]} Rf1 {[%emt 0:00:13]} 94. Bd5 {[%emt 0:00:36]} Rf5 {[%emt 0:00:12]} 95. Ra8+ {[%emt 0:00:22]} Kg7 {[%emt 0:00:05]} 96. Re8 {[%emt 0:01:32]} Rf6+ {[%emt 0:01:09]} 97. Ke5 {[%emt 0:00:53]} Rf5+ {[%emt 0:00:23]} 98. Kd4 {[%emt 0:00:05]} Rf2 {[%emt 0:00:29]} 99. Ke3 {[%emt 0:00:24]} Rf5 {[%emt 0:00:10]} 100. Be4 {[%emt 0:00:20]} Rf6 {[%emt 0:00:11]} 101. Rd8 {[%emt 0:00:52]} Re6 {[%emt 0:00:43]} 102. Kf4 {[%emt 0:00:07]} Re7 {[%emt 0:00:28]} 103. Bd5 1/2-1/2

[Event "10th Iberoamericano-ch 2024"]
[Site "Linares"]
[Date "2024.09.25"]
[Round "2.3"]
[White "Marin Ferragut, Pau"]
[Black "Avila Pavas, Santiago"]
[Result "1/2-1/2"]
[ECO "B72"]
[WhiteElo "2348"]
[BlackElo "2485"]
[Annotator "RC"]
[PlyCount "164"]
[EventDate "2024.09.25"]
[EventType "swiss"]
[EventCountry "ESP"]
[SourceTitle "playchess.com"]
[Source "ChessBase"]
[SourceQuality "1"]
[TimeControl "5400+30"]

1. e4 {[%emt 0:00:12]} c5 {[%emt 0:00:14]} 2. Nf3 {[%emt 0:00:27]} g6 {[%emt 0:00:09]} 3. d4 {[%emt 0:00:32]} cxd4 {[%emt 0:00:11]} 4. Nxd4 {[%emt 0:00:11]} Nf6 {[%emt 0:02:38]} 5. Nc3 {[%emt 0:01:11]} d6 {[%emt 0:00:06]} 6. Be3 {[%emt 0:00:23]} Nc6 {[%emt 0:00:05]} 7. f3 {[%emt 0:00:30]} h5 {[%emt 0:00:07]} 8. Bc4 {[%emt 0:07:23]} Bg7 {[%emt 0:00:30]} 9. Bb3 {[%emt 0:02:05]} Na5 {[%emt 0:01:28]} 10. Qd2 {[%emt 0:01:32]} Bd7 {[%emt 0:00:28]} 11. O-O-O {[%emt 0:02:47]} Rb8 {[%emt 0:00:27]} 12. Kb1 {[%emt 0:01:10]} b5 {[%emt 0:00:54]} 13. h4 {[%emt 0:04:27]} Qc8 {[%emt 0:08:24]} 14. Bg5 {[%emt 0:14:04]} Nc4 {[%emt 0:26:10]} 15. Bxc4 {[%emt 0:02:23]} Qxc4 {[%emt 0:00:11]} 16. Nb3 {[%emt 0:05:10]} Be6 {[%emt 0:02:04]} 17. Nd5 {[%emt 0:06:43]} Bxd5 {[%emt 0:08:32]} 18. exd5 {[%emt 0:00:02]} Rc8 {[%emt 0:00:11]} 19. Rhe1 {[%emt 0:01:00]} Qc7 {[%emt 0:14:08]} 20. Qe2 {[%emt 0:07:21]} O-O {[%emt 0:00:28]} 21. c3 {[%emt 0:02:13]} Qb6 {[%emt 0:20:18]} 22. g4 {[%emt 0:06:26]} Rc4 {[%emt 0:03:30]} 23. Bxf6 {[%emt 0:07:06]} Bxf6 {[%emt 0:00:05]} 24. gxh5 {[%emt 0:00:38]} Rxh4 {[%emt 0:00:30]} 25. hxg6 {[%emt 0:01:40]} fxg6 {[%emt 0:00:02]} 26. Rg1 {[%emt 0:00:34]} Kh7 {[%emt 0:05:28]} 27. Nd4 {[%emt 0:03:52]} b4 {[%emt 0:02:29]} 28. Ne6 {[%emt 0:00:16]} Rc8 {[%emt 0:01:27]} 29. c4 {[%emt 0:02:35]} b3 {[%emt 0:01:00]} 30. a3 {[%emt 0:02:38]} Qa6 {[%emt 0:02:43]} 31. f4 {[%emt 0:06:44]} Qxc4 {[%emt 0:00:30]} 32. Nf8+ {[%emt 0:00:22]} Kg7 {[%emt 0:00:28]} 33. Qxc4 {[%emt 0:00:06]} Rxc4 {[%emt 0:00:01]} 34. Nxg6 {[%emt 0:00:09]} Kf7 {[%emt 0:00:59]} 35. Nxh4 {[%emt 0:00:17]} Bxh4 {[%emt 0:00:01]} 36. Rd3 {[%emt 0:02:11]} Rxf4 {[%emt 0:00:04]} 37. Rxb3 {[%emt 0:00:08]} Rd4 {[%emt 0:00:04]} 38. Rb4 {[%emt 0:00:45]} Rxb4 {[%emt 0:00:06]} 39. axb4 {[%emt 0:00:01]} e6 {[%emt 0:00:38]} 40. Rh1 {[%emt 0:01:00]} Bd8 {[%emt 0:01:27]} 41. Rh7+ {[%emt 0:00:08]} Kf6 {[%emt 0:00:01]} 42. Rd7 {[%emt 0:01:07]} Bb6 {[%emt 0:01:10]} 43. Rxd6 {[%emt 0:01:21]} Ke5 {[%emt 0:00:01]} 44. Rxe6+ {[%emt 0:00:09]} Kxd5 {[%emt 0:00:03]} 45. Rg6 {[%emt 0:00:20]} Kc4 {[%emt 0:00:12]} 46. Rg4+ {[%emt 0:00:01]} Kb3 {[%emt 0:00:25]} 47. Re4 {[%emt 0:01:56]} Bc7 {[%emt 0:00:45]} 48. Kc1 {[%emt 0:01:11]} Bb6 {[%emt 0:00:03]} 49. b5 {[%emt 0:01:23]} Bc5 {[%emt 0:01:33]} 50. Rg4 {[%emt 0:02:48]} Bb6 {[%emt 0:00:05]} 51. Kd2 {[%emt 0:03:12]} Kxb2 {[%emt 0:00:05]} 52. Rb4+ {[%emt 0:00:00]} Ka3 {[%emt 0:00:06]} 53. Rb1 {[%emt 0:00:29]} Ka4 {[%emt 0:00:29]} 54. Kc3 {[%emt 0:01:39]} Ka5 {[%emt 0:01:19]} 55. Kc4 {[%emt 0:01:36]} Bf2 {[%emt 0:00:14]} 56. Rb2 {[%emt 0:00:45]} Be3 {[%emt 0:00:15]} 57. Re2 {[%emt 0:00:38]} Bg1 {[%emt 0:00:05]} 58. Re6 {[%emt 0:00:36]} Bb6 {[%emt 0:00:06]} 59. Re1 {[%emt 0:00:43]} Bf2 {[%emt 0:00:06]} 60. Ra1+ {[%emt 0:00:01]} Kb6 {[%emt 0:00:07]} 61. Ra6+ {[%emt 0:00:07]} Kb7 {[%emt 0:00:27]} 62. Rf6 {[%emt 0:00:17]} Be3 {[%emt 0:00:19]} 63. Kd5 {[%emt 0:00:20]} Bg1 {[%emt 0:01:43]} 64. Rf1 {[%emt 0:00:22]} Be3 {[%emt 0:00:04]} 65. Rf6 {[%emt 0:00:32]} Bg1 {[%emt 0:00:06]} 66. Rc6 {[%emt 0:00:22]} Bb6 {[%emt 0:01:59]} 67. Rc2 {[%emt 0:00:22]} Be3 {[%emt 0:00:14]} 68. Kc4 {[%emt 0:00:21]} Bg1 {[%emt 0:00:22]} 69. Kb4 {[%emt 0:00:04]} Be3 {[%emt 0:00:18]} 70. Rg2 {[%emt 0:00:06]} Kb6 {[%emt 0:00:31]} 71. Re2 {[%emt 0:00:37]} Bc5+ {[%emt 0:01:03]} 72. Kc4 {[%emt 0:00:21]} Bg1 {[%emt 0:00:04]} 73. Re6+ {[%emt 0:00:06]} Kb7 {[%emt 0:00:03]} 74. Re7+ {[%emt 0:00:08]} Kb6 {[%emt 0:00:06]} 75. Re2 {[%emt 0:00:05]} Kb7 {[%emt 0:00:06]} 76. Kd5 {[%emt 0:00:26]} Kb6 {[%emt 0:00:47]} 77. Kc4 {[%emt 0:01:04]} Kb7 {[%emt 0:00:06]} 78. Kb4 {[%emt 0:00:03]} Kb6 {[%emt 0:00:06]} 79. Re6+ {[%emt 0:00:05]} Kb7 {[%emt 0:00:04]} 80. Ka5 {[%emt 0:00:05]} Bb6+ {[%emt 0:00:06]} 81. Ka4 {[%emt 0:00:04]} Bg1 {[%emt 0:00:10]} 82. Ra6 {[%emt 0:00:00]} Bf2 {[%emt 0:01:21]} 1/2-1/2

[Event "10th Iberoamericano-ch 2024"]
[Site "Linares"]
[Date "2024.09.25"]
[Round "2.4"]
[White "Salinas Herrera, Pablo"]
[Black "Jimenez Garcia, Emmanuel"]
[Result "1-0"]
[ECO "A46"]
[WhiteElo "2479"]
[BlackElo "2352"]
[Annotator "RC"]
[PlyCount "75"]
[EventDate "2024.09.25"]
[EventType "swiss"]
[EventCountry "ESP"]
[SourceTitle "playchess.com"]
[Source "ChessBase"]
[SourceQuality "1"]
[TimeControl "5400+30"]

1. d4 {[%emt 0:00:03]} d6 {[%emt 0:02:16]} 2. Nf3 {[%emt 0:00:15]} Nf6 {[%emt 0:00:06]} 3. c4 {[%emt 0:02:12]} g6 {[%emt 0:00:09]} 4. Nc3 {[%emt 0:00:13]} Bf5 {[%emt 0:00:17]} 5. Nh4 {[%emt 0:04:33]} Bd7 {[%emt 0:00:02]} 6. e4 {[%emt 0:00:07]} e5 {[%emt 0:00:04]} 7. Nf3 {[%emt 0:00:32]} exd4 {[%emt 0:00:03]} 8. Nxd4 {[%emt 0:00:07]} Bg7 {[%emt 0:00:13]} 9. f3 {[%emt 0:03:23]} Nc6 {[%emt 0:00:54]} 10. Be3 {[%emt 0:00:23]} O-O {[%emt 0:00:42]} 11. Nc2 {[%emt 0:04:44]} Be6 {[%emt 0:07:43]} 12. Qd2 {[%emt 0:09:21]} a5 {[%emt 0:06:28]} 13. Be2 {[%emt 0:00:13]} Nd7 {[%emt 0:00:50]} 14. h4 {[%emt 0:04:09]} Nce5 {[%emt 0:25:05]} 15. Na3 {[%emt 0:00:16]} f5 {[%emt 0:03:13]} 16. h5 {[%emt 0:16:45]} Nc5 {[%emt 0:02:52]} 17. hxg6 {[%emt 0:05:32]} hxg6 {[%emt 0:00:03]} 18. f4 {[%emt 0:04:35]} Nc6 {[%emt 0:07:26]} 19. exf5 {[%emt 0:00:49]} gxf5 {[%emt 0:00:24]} 20. Nab5 {[%emt 0:00:25]} a4 {[%emt 0:07:25]} 21. Rd1 {[%emt 0:08:46]} Na5 {[%emt 0:05:38]} 22. Bd4 {[%emt 0:00:59]} Nxc4 {[%emt 0:01:11]} 23. Qc1 {[%emt 0:10:12]} Qe7 {[%emt 0:03:56]} 24. Rh3 {[%emt 0:00:04]} a3 {[%emt 0:08:42]} 25. b4 {[%emt 0:00:39]} Na6 {[%emt 0:01:13]} 26. Kf2 {[%emt 0:00:28]} Ne5 {[%emt 0:02:14]} 27. Rdh1 {[%emt 0:02:39]} Nxb4 {[%emt 0:01:08]} 28. fxe5 {[%emt 0:00:34]} dxe5 {[%emt 0:00:13]} 29. Rh8+ {[%emt 0:01:42]} Bxh8 {[%emt 0:02:26]} 30. Rxh8+ {[%emt 0:00:04]} Kxh8 {[%emt 0:00:08]} 31. Qh6+ {[%emt 0:00:17]} Kg8 {[%emt 0:05:20]} 32. Bxe5 {[%emt 0:00:05]} Rf6 {[%emt 0:04:20]} 33. Bxf6 {[%emt 0:01:13]} Qh7 {[%emt 0:00:02]} 34. Qg5+ {[%emt 0:01:31]} Kf8 {[%emt 0:00:01]} 35. Nxc7 {[%emt 0:03:11]} Qxc7 {[%emt 0:00:27]} 36. Qh6+ {[%emt 0:00:04]} Ke8 {[%emt 0:00:46]} 37. Qh8+ {[%emt 0:00:04]} Kd7 {[%emt 0:00:04]} 38. Qg7+ {[%emt 0:00:03]} 1-0

[Event "10th Iberoamericano-ch 2024"]
[Site "Linares"]
[Date "2024.09.25"]
[Round "2.5"]
[White "Ticona Rocabado, Licael Roderick"]
[Black "Gines Esteo, Pedro Antonio"]
[Result "1/2-1/2"]
[ECO "E10"]
[WhiteElo "2321"]
[BlackElo "2477"]
[Annotator "TA"]
[PlyCount "62"]
[EventDate "2024.09.25"]
[EventType "swiss"]
[EventCountry "ESP"]
[SourceTitle "playchess.com"]
[Source "ChessBase"]
[SourceQuality "1"]
[TimeControl "5400+30"]

{[%evp 17,62,10,13,2,3,-10,0,0,0,0,0,-52,-50,-53,-35,-36,-52,-63,-70,-151,-127,-205,-236,-272,-268,-259,-260,-571,-183,-191,-195,-177,-169,-189,0,0,0,0,0,0,0,0,0,0,0,0,0]} 1. d4 {[%emt 0:07:58]} Nf6 {[%emt 0:03:09]} 2. c4 {[%emt 0:00:56]} e6 {[%emt 0:00:42]} 3. Nf3 {[%emt 0:00:13]} d5 {[%emt 0:03:13]} 4. e3 {[%emt 0:00:23]} Be7 {[%emt 0:01:01]} 5. Nbd2 {[%emt 0:00:44]} O-O {[%emt 0:00:53]} 6. Bd3 {[%emt 0:00:21]} c5 {[%emt 0:00:44]} 7. cxd5 {[%emt 0:01:13]} exd5 {[%emt 0:10:34]} 8. dxc5 {[%emt 0:00:42]} Bxc5 {[%emt 0:06:25]} 9. O-O {[%emt 0:02:39]} Nc6 {[%emt 0:00:17]} 10. h3 {[%emt 0:02:04]} Qe7 {[%emt 0:04:44]} 11. Nb3 {[%emt 0:01:53]} Bd6 {[%emt 0:00:31]} 12. Nbd4 {[%emt 0:00:44]} Ne4 {[%emt 0:02:44]} 13. b3 {[%emt 0:01:29]} Nxd4 {[%emt 0:17:04]} 14. exd4 {[%emt 0:01:24]} ({White should play} 14. Nxd4 $11 Qg5 15. f4) 14... Bf5 $15 {[%emt 0:06:52]} 15. Re1 {[%emt 0:00:46]} Rad8 {[%emt 0:05:02]} 16. Bb2 $1 {[%emt 0:07:07]} Bb8 {[%emt 0:05:40]} 17. Nd2 {[%emt 0:10:40]} Qh4 {[%emt 0:15:28]} 18. Bxe4 {[%emt 0:02:43]} (18. Qf3 $15 Bxh3 (18... Nxd2 19. Qxf5 g6 20. Qg4 $16) 19. Bxe4) 18... dxe4 $17 {[%emt 0:00:35]} 19. Nf1 {[%emt 0:00:06] [#]} (19. Re3 $17) 19... Bxh3 $1 $19 {[%emt 0:06:20][%mdl 512]} 20. gxh3 {[%emt 0:01:06] [#] And now Qg4 would win.} (20. g3 Qe7) 20... Rd6 $1 {[%emt 0:00:10]} (20... Qxh3 21. Rxe4 Rd6 22. Rg4 $11) (20... f5 21. f4 $17) 21. Re3 {[%emt 0:02:52]} (21. Qg4 $2 Rg6 22. Rxe4 Rxg4+ (22... f5 $2 23. Qxg6 fxe4 24. Qg2 $18) 23. Rxg4 Qxh3 $19) 21... Rg6+ {[%emt 0:03:08]} 22. Rg3 $2 {[%emt 0:01:59]} (22. Ng3 {was the crucial defense.} f5 (22... Qxh3 23. Qf1 $17) (22... Bxg3 23. fxg3 Rxg3+ 24. Rxg3 $17) 23. Qf1) 22... Bxg3 $2 {[%emt 0:02:53]} (22... Rxg3+ 23. fxg3 Bxg3 (23... Qxh3 24. d5 $16) 24. Qg4 $18) ({Not} 22... Qxh3 23. Rxg6 fxg6 24. Qe2 $11) (22... e3 {( -> ...exf2+)} 23. Qf3 exf2+ (23... Qxh3 24. Qxe3 Bxg3 25. fxg3 $11) 24. Kg2 Bxg3 25. Nxg3 Re8) 23. fxg3 {[%emt 0:00:08]} Qxh3 {[%emt 0:00:46]} 24. Qe2 {[%emt 0:02:38]} f5 {[%emt 0:00:38] aiming for ...f4.} 25. Ba3 {[%emt 0:02:28] [#]} Rf7 $2 {[%emt 0:02:06]} ({Better is} 25... Re8 $1 $19 {...f4 would now be deadly.} 26. Qb5 Rxg3+ 27. Nxg3 Qxg3+ 28. Kf1 Qf3+ 29. Ke1 Rd8) 26. Qb5 $1 $11 {[%emt 0:09:15] Dancing on a razor blade. The position is equal.} Rxg3+ {[%emt 0:01:16]} 27. Nxg3 {[%emt 0:00:06]} Qxg3+ {[%emt 0:00:03]} 28. Kf1 {[%emt 0:00:09]} Qf3+ {[%emt 0:00:19]} 29. Kg1 {[%emt 0:00:18] Intending Qe8+ and mate.} Qg3+ {[%emt 0:00:13]} 30. Kf1 {[%emt 0:00:06] Qe8+ would kill now.} Qf3+ {[%emt 0:00:01]} 31. Kg1 {[%emt 0:00:12] Threatening mate with Qe8+.} Qg3+ {[%emt 0:01:44] Black had all chances to win.   Weighted Error Value: White=0.24 (precise) /Black=0.31.  Missed win:     	---       	Black=1      Mistake:       	White=4     	Black=1      OK:         	White=6     	Black=10     Best:        	White=1     	---        Strong:       	White=2     	Black=1} 1/2-1/2

[Event "10th Iberoamericano-ch 2024"]
[Site "Linares"]
[Date "2024.09.25"]
[Round "2.6"]
[White "Fernandez Guillen, Ernesto J."]
[Black "Vitier Vazquez, Cristian"]
[Result "1/2-1/2"]
[ECO "A07"]
[WhiteElo "2463"]
[BlackElo "2344"]
[Annotator "TA"]
[PlyCount "46"]
[EventDate "2024.09.25"]
[EventType "swiss"]
[EventCountry "ESP"]
[SourceTitle "playchess.com"]
[Source "ChessBase"]
[SourceQuality "1"]
[TimeControl "5400+30"]

{[%evp 20,46,18,0,15,0,-4,-24,0,0,0,0,0,0,0,0,0,-30,-20,-40,-25,-50,-33,-17,-17,-33,-35,-54,-71]} 1. Nf3 {[%emt 0:07:51]} d5 {[%emt 0:01:01]} 2. g3 {[%emt 0:00:28]} c6 {[%emt 0:00:28]} 3. Bg2 {[%emt 0:00:09]} Bf5 {[%emt 0:00:51]} 4. O-O {[%emt 0:00:31]} e6 {[%emt 0:00:13]} 5. d3 {[%emt 0:01:38]} h6 {[%emt 0:01:27]} 6. Nbd2 {[%emt 0:03:29]} Nf6 {[%emt 0:00:17]} 7. b3 {[%emt 0:00:24]} Be7 {[%emt 0:00:52]} 8. Bb2 {[%emt 0:00:11]} O-O {[%emt 0:00:24]} 9. Re1 {[%emt 0:00:36]} Bh7 {[%emt 0:00:36]} 10. e4 {[%emt 0:01:12]} a5 {[%emt 0:01:23]} 11. a3 {[%emt 0:01:39]} Nbd7 {[%emt 0:09:05]} 12. e5 {[%emt 0:18:27]} Ne8 {[%emt 0:00:34][%cal Bf6e8,Be8c7,Bc7a6,Ba6b4][%mdl 32]} 13. Nf1 {[%emt 0:00:19]} c5 {[%emt 0:08:09] Black has an edge.} 14. a4 {[%emt 0:10:43]} Nc7 {[%emt 0:09:17]} 15. Ne3 {[%emt 0:04:37]} Na6 {[%emt 0:02:38]} 16. Nd2 {[%emt 0:01:32]} Nb4 {[%emt 0:06:47]} 17. f4 {[%emt 0:03:50]} Nb6 {[%emt 0:12:17]} 18. Ba3 {[%emt 0:19:17]} Qc7 {[%emt 0:21:58]} 19. Kh1 {[%emt 0:13:38]} Rfd8 {[%emt 0:04:51]} 20. Bxb4 {[%emt 0:02:08]} cxb4 {[%emt 0:03:21]} 21. Nf3 {[%emt 0:02:57]} Bc5 {[%emt 0:03:06]} 22. Qe2 {[%emt 0:01:38]} Nc8 {[%emt 0:05:59]} 23. Rac1 {[%emt 0:02:21]} Ne7 {[%emt 0:01:41] Weighted Error Value: White=0.13 (very precise) /Black=0.04 (flawless) .  Inaccurate:     	White=1     	---        OK:         	White=5     	Black=8} 1/2-1/2